[Event "Late-Titled-Tuesday-Blitz-October-24-2023"]
[Site "Chess.com"]
[Date "2023.10.24"]
[Round "3"]
[White "talaicito"]
[Black "Gogolev_Artemy"]
[Result "0-1"]
[WhiteElo "2249"]
[BlackElo "2396"]
[TimeControl "180+1"]
[EndTime "14:29:28 PDT"]
[Termination "Gogolev_Artemy won on time"]

1. d4 {[%clk 0:03:00.9]} 1... d6 {[%clk 0:03:00.1]} 2. e4 {[%clk 0:02:57.6]}
2... g6 {[%clk 0:02:59.1]} 3. Nc3 {[%clk 0:02:56.6]} 3... Bg7 {[%clk 0:02:59.1]}
4. Bf4 {[%clk 0:02:56.6]} 4... a6 {[%clk 0:02:58.5]} 5. Qd2 {[%clk 0:02:56.5]}
5... Nd7 {[%clk 0:02:55.7]} 6. O-O-O {[%clk 0:02:45.4]} 6... b5 {[%clk
0:02:52.2]} 7. f3 {[%clk 0:02:42.3]} 7... Bb7 {[%clk 0:02:47.6]} 8. h4 {[%clk
0:02:40.8]} 8... h6 {[%clk 0:02:44]} 9. Nge2 {[%clk 0:02:30.8]} 9... c5 {[%clk
0:02:41.5]} 10. dxc5 {[%clk 0:02:22.5]} 10... Nxc5 {[%clk 0:02:37.7]} 11. Ng3
{[%clk 0:02:16.1]} 11... Rc8 {[%clk 0:02:15.9]} 12. h5 {[%clk 0:02:10.9]} 12...
g5 {[%clk 0:02:12.2]} 13. Nf5 {[%clk 0:02:09.2]} 13... Bf6 {[%clk 0:02:05.4]}
14. Bxd6 {[%clk 0:01:52.3]} 14... exd6 {[%clk 0:01:57.5]} 15. Nxd6+ {[%clk
0:01:52.4]} 15... Kf8 {[%clk 0:01:57]} 16. Nxc8 {[%clk 0:01:51.3]} 16... Qxd2+
{[%clk 0:01:43.5]} 17. Rxd2 {[%clk 0:01:50.4]} 17... Bxc8 {[%clk 0:01:43.7]} 18.
Nd5 {[%clk 0:01:44.2]} 18... Be5 {[%clk 0:01:42.7]} 19. Kb1 {[%clk 0:01:21.7]}
19... Ne7 {[%clk 0:01:40.6]} 20. c4 {[%clk 0:01:12.8]} 20... Be6 {[%clk
0:01:24.5]} 21. cxb5 {[%clk 0:01:08.1]} 21... Nxd5 {[%clk 0:01:22.5]} 22. exd5
{[%clk 0:00:52.5]} 22... Bf5+ {[%clk 0:01:20.8]} 23. Ka1 {[%clk 0:00:52.9]}
23... axb5 {[%clk 0:01:19.3]} 24. Bxb5 {[%clk 0:00:49]} 24... Ke7 {[%clk
0:01:16.1]} 25. d6+ {[%clk 0:00:47.3]} 25... Kf6 {[%clk 0:01:11.1]} 26. Bc4
{[%clk 0:00:36.8]} 26... Rb8 {[%clk 0:00:59.7]} 27. g4 {[%clk 0:00:33.7]} 27...
Bd7 {[%clk 0:00:54.4]} 28. a3 {[%clk 0:00:33.4]} 28... Nb3+ {[%clk 0:00:48.7]}
29. Bxb3 {[%clk 0:00:32.8]} 29... Rxb3 {[%clk 0:00:49.6]} 30. Ka2 {[%clk
0:00:17.5]} 30... Be6 {[%clk 0:00:48.8]} 31. Kb1 {[%clk 0:00:14.9]} 31... Bd7
{[%clk 0:00:43]} 32. Rf1 {[%clk 0:00:15]} 32... Ke6 {[%clk 0:00:39.3]} 33. Kc2
{[%clk 0:00:14.6]} 33... Rxb2+ {[%clk 0:00:37.1]} 34. Kc1 {[%clk 0:00:12]} 34...
Rb3 {[%clk 0:00:34.4]} 35. Re1 {[%clk 0:00:07.8]} 35... Rxa3 {[%clk 0:00:31.4]}
36. Rde2 {[%clk 0:00:03.8]} 36... f6 {[%clk 0:00:29.5]} 37. Kc2 {[%clk
0:00:01.1]} 37... Kxd6 {[%clk 0:00:27.4]} 0-1

[Event "Late-Titled-Tuesday-Blitz-October-24-2023"]
[Site "Chess.com"]
[Date "2023.10.24"]
[Round "3"]
[White "FabianoCaruana"]
[Black "IMRosen"]
[Result "1-0"]
[WhiteElo "3084"]
[BlackElo "2629"]
[TimeControl "180+1"]
[EndTime "14:29:34 PDT"]
[Termination "FabianoCaruana won on time"]

1. b3 {[%clk 0:03:00.9]} 1... e5 {[%clk 0:02:59.5]} 2. Bb2 {[%clk 0:03:00.6]}
2... Nc6 {[%clk 0:03:00.2]} 3. e3 {[%clk 0:03:01.2]} 3... Nf6 {[%clk 0:03:00.4]}
4. Bb5 {[%clk 0:03:01]} 4... e4 {[%clk 0:03:00.5]} 5. Ne2 {[%clk 0:02:58.1]}
5... a6 {[%clk 0:03:00.8]} 6. Bxc6 {[%clk 0:02:58.1]} 6... dxc6 {[%clk
0:03:01.7]} 7. h3 {[%clk 0:02:56.1]} 7... Bd6 {[%clk 0:03:00.5]} 8. Nbc3 {[%clk
0:02:54.2]} 8... h5 {[%clk 0:02:58.4]} 9. d3 {[%clk 0:02:43.5]} 9... Qe7 {[%clk
0:02:58.4]} 10. Qd2 {[%clk 0:02:37.1]} 10... Bf5 {[%clk 0:02:55.8]} 11. d4
{[%clk 0:02:09.2]} 11... h4 {[%clk 0:02:49.1]} 12. O-O-O {[%clk 0:02:09.3]}
12... O-O-O {[%clk 0:02:47.6]} 13. Kb1 {[%clk 0:02:08.9]} 13... Kb8 {[%clk
0:02:47.7]} 14. Qc1 {[%clk 0:01:50.3]} 14... Rh6 {[%clk 0:02:44.7]} 15. Na4
{[%clk 0:01:45.8]} 15... Rg6 {[%clk 0:02:36.5]} 16. Rdg1 {[%clk 0:01:45.2]}
16... Nd7 {[%clk 0:02:02.8]} 17. g4 {[%clk 0:01:25.7]} 17... hxg3 {[%clk
0:02:01.7]} 18. fxg3 {[%clk 0:01:23.4]} 18... Rh6 {[%clk 0:01:56.7]} 19. g4
{[%clk 0:01:22.9]} 19... Bg6 {[%clk 0:01:55.1]} 20. c4 {[%clk 0:01:15.1]} 20...
c5 {[%clk 0:01:51]} 21. dxc5 {[%clk 0:01:13.7]} 21... Nxc5 {[%clk 0:01:50.8]}
22. Nxc5 {[%clk 0:01:13.8]} 22... Bxc5 {[%clk 0:01:51.1]} 23. Bxg7 {[%clk
0:01:14.2]} 23... Rh7 {[%clk 0:01:27.4]} 24. Bd4 {[%clk 0:01:14.2]} 24... Bd6
{[%clk 0:01:04.1]} 25. Qc3 {[%clk 0:01:09.3]} 25... Bb4 {[%clk 0:00:51.2]} 26.
Qc2 {[%clk 0:01:08.6]} 26... Bd6 {[%clk 0:00:45.6]} 27. Rd1 {[%clk 0:01:04]}
27... f5 {[%clk 0:00:34.3]} 28. c5 {[%clk 0:00:55.9]} 28... Be5 {[%clk
0:00:26.1]} 29. Bxe5 {[%clk 0:00:56.2]} 29... Rxd1+ {[%clk 0:00:26.9]} 30. Rxd1
{[%clk 0:00:56.6]} 30... Qxe5 {[%clk 0:00:27.6]} 31. Nf4 {[%clk 0:00:56.9]}
31... Qf6 {[%clk 0:00:12.7]} 32. c6 {[%clk 0:00:49.2]} 32... Bf7 {[%clk
0:00:07.8]} 33. cxb7 {[%clk 0:00:44.1]} 33... fxg4 {[%clk 0:00:07.5]} 34. Rd7
{[%clk 0:00:36.8]} 34... Qb6 {[%clk 0:00:01.7]} 35. hxg4 {[%clk 0:00:31]} 35...
Rh1+ {[%clk 0:00:01.7]} 36. Kb2 {[%clk 0:00:31]} 36... Kxb7 {[%clk 0:00:01.2]}
37. Rxf7 {[%clk 0:00:29]} 37... Rf1 {[%clk 0:00:01.5]} 38. Nd5 {[%clk
0:00:26.7]} 38... Qc6 {[%clk 0:00:01.3]} 39. Rxc7+ {[%clk 0:00:26.3]} 1-0

[Event "Late-Titled-Tuesday-Blitz-October-24-2023"]
[Site "Chess.com"]
[Date "2023.10.24"]
[Round "3"]
[White "vidavi"]
[Black "dimitrisl"]
[Result "0-1"]
[WhiteElo "2395"]
[BlackElo "2602"]
[TimeControl "180+1"]
[EndTime "14:29:36 PDT"]
[Termination "dimitrisl won on time"]

1. e4 {[%clk 0:03:00.9]} 1... e6 {[%clk 0:02:58.9]} 2. f4 {[%clk 0:02:56.5]}
2... d5 {[%clk 0:02:59.8]} 3. e5 {[%clk 0:02:57.1]} 3... c5 {[%clk 0:02:58.8]}
4. Nf3 {[%clk 0:02:57.4]} 4... Nc6 {[%clk 0:02:58.6]} 5. Be2 {[%clk 0:02:55.6]}
5... h5 {[%clk 0:02:59]} 6. O-O {[%clk 0:02:55.4]} 6... Nge7 {[%clk 0:02:59.6]}
7. c3 {[%clk 0:02:52.3]} 7... d4 {[%clk 0:02:58.3]} 8. Na3 {[%clk 0:02:45.7]}
8... Nd5 {[%clk 0:02:51.1]} 9. Ng5 {[%clk 0:02:19.8]} 9... g6 {[%clk 0:02:43.5]}
10. Ne4 {[%clk 0:02:03.5]} 10... Be7 {[%clk 0:02:42.7]} 11. Nc4 {[%clk
0:02:00.5]} 11... Kf8 {[%clk 0:02:35.4]} 12. a4 {[%clk 0:01:41]} 12... b6 {[%clk
0:02:26.7]} 13. d3 {[%clk 0:01:15.4]} 13... Ba6 {[%clk 0:02:24]} 14. Ncd6 {[%clk
0:01:15]} 14... Bxd6 {[%clk 0:02:24.1]} 15. Nxd6 {[%clk 0:01:08.9]} 15... dxc3
{[%clk 0:02:22]} 16. Bf3 {[%clk 0:00:42.7]} 16... cxb2 {[%clk 0:02:17.3]} 17.
Bxb2 {[%clk 0:00:43.1]} 17... Ncb4 {[%clk 0:02:06.2]} 18. f5 {[%clk 0:00:35.9]}
18... gxf5 {[%clk 0:01:59.6]} 19. Bxh5 {[%clk 0:00:32.8]} 19... Qh4 {[%clk
0:01:56.1]} 20. g4 {[%clk 0:00:24]} 20... Ne3 {[%clk 0:01:46.6]} 21. Qf3 {[%clk
0:00:23]} 21... Nxg4 {[%clk 0:01:39.8]} 22. Qxa8+ {[%clk 0:00:14]} 22... Kg7
{[%clk 0:01:39.8]} 23. Nxf5+ {[%clk 0:00:14.6]} 23... exf5 {[%clk 0:01:34.9]}
24. e6+ {[%clk 0:00:14.9]} 24... Nf6 {[%clk 0:01:25.9]} 25. Qg2+ {[%clk
0:00:11.8]} 25... Kh7 {[%clk 0:01:02.8]} 26. Bxf7 {[%clk 0:00:11.4]} 26... Ng4
{[%clk 0:00:40.1]} 27. Rxf5 {[%clk 0:00:07]} 27... Bb7 {[%clk 0:00:30.1]} 28.
Rh5+ {[%clk 0:00:04.6]} 28... Qxh5 {[%clk 0:00:29.9]} 29. Bxh5 {[%clk
0:00:04.2]} 29... Bxg2 {[%clk 0:00:30.5]} 30. Bxg4 {[%clk 0:00:04.9]} 30... Rg8
{[%clk 0:00:30.2]} 31. Bf5+ {[%clk 0:00:03.3]} 31... Kh6 {[%clk 0:00:28.8]} 32.
e7 {[%clk 0:00:03.8]} 32... Bh3+ {[%clk 0:00:19.8]} 33. Bg6 {[%clk 0:00:02.7]}
33... Rxg6+ {[%clk 0:00:19.4]} 34. Kf2 {[%clk 0:00:03.6]} 34... Bd7 {[%clk
0:00:18.7]} 0-1

[Event "Late-Titled-Tuesday-Blitz-October-24-2023"]
[Site "Chess.com"]
[Date "2023.10.24"]
[Round "3"]
[White "Alphafischer2019"]
[Black "ATM622"]
[Result "1-0"]
[WhiteElo "2605"]
[BlackElo "2411"]
[TimeControl "180+1"]
[EndTime "14:29:42 PDT"]
[Termination "Alphafischer2019 won by resignation"]

1. e4 {[%clk 0:03:00.9]} 1... c6 {[%clk 0:02:58.4]} 2. d4 {[%clk 0:02:59.6]}
2... d5 {[%clk 0:02:59.3]} 3. Nc3 {[%clk 0:03:00]} 3... dxe4 {[%clk 0:02:58.7]}
4. Nxe4 {[%clk 0:03:00.9]} 4... Bf5 {[%clk 0:02:58.6]} 5. Ng3 {[%clk 0:03:01]}
5... Bg6 {[%clk 0:02:58.5]} 6. Nf3 {[%clk 0:03:01.8]} 6... Nd7 {[%clk 0:02:58]}
7. Bc4 {[%clk 0:03:00.8]} 7... Ngf6 {[%clk 0:02:57.8]} 8. O-O {[%clk 0:03:00.7]}
8... e6 {[%clk 0:02:58.1]} 9. Re1 {[%clk 0:02:58.4]} 9... Be7 {[%clk 0:02:56.8]}
10. Bb3 {[%clk 0:02:57.8]} 10... O-O {[%clk 0:02:56.8]} 11. c4 {[%clk
0:02:57.9]} 11... Qc7 {[%clk 0:02:55.1]} 12. Qe2 {[%clk 0:02:50.8]} 12... Rfe8
{[%clk 0:02:52.4]} 13. Bd2 {[%clk 0:02:48.3]} 13... c5 {[%clk 0:02:50.1]} 14.
Bc3 {[%clk 0:02:33.7]} 14... cxd4 {[%clk 0:02:48.9]} 15. Nxd4 {[%clk 0:02:32.7]}
15... a6 {[%clk 0:02:44.9]} 16. Ba4 {[%clk 0:02:27.1]} 16... Rac8 {[%clk
0:02:41.9]} 17. Bxd7 {[%clk 0:02:23.6]} 17... Qxd7 {[%clk 0:02:38.5]} 18. Rac1
{[%clk 0:02:19.1]} 18... h5 {[%clk 0:02:18.8]} 19. Red1 {[%clk 0:02:14.7]} 19...
Qc7 {[%clk 0:02:17.2]} 20. b3 {[%clk 0:02:05.1]} 20... h4 {[%clk 0:02:03.2]} 21.
Nf1 {[%clk 0:02:04.4]} 21... Ne4 {[%clk 0:02:03.6]} 22. Bb2 {[%clk 0:02:03.5]}
22... h3 {[%clk 0:01:57.6]} 23. g3 {[%clk 0:02:00.8]} 23... Bg5 {[%clk
0:01:46.7]} 24. Ne3 {[%clk 0:01:59.3]} 24... f5 {[%clk 0:01:35.1]} 25. f4 {[%clk
0:01:34.2]} 25... Bxf4 {[%clk 0:00:59.2]} 26. gxf4 {[%clk 0:01:32.5]} 26... Qxf4
{[%clk 0:00:59.4]} 27. Rf1 {[%clk 0:01:29.4]} 27... Qg5+ {[%clk 0:00:51.7]} 28.
Kh1 {[%clk 0:01:29.2]} 28... Bh5 {[%clk 0:00:52]} 29. Nf3 {[%clk 0:01:28.6]}
29... Qf4 {[%clk 0:00:47.7]} 30. Ng1 {[%clk 0:01:26.1]} 30... Ng3+ {[%clk
0:00:39.4]} 31. hxg3 {[%clk 0:01:22.6]} 31... Qe4+ {[%clk 0:00:39.8]} 32. Rf3
{[%clk 0:01:23.3]} 32... f4 {[%clk 0:00:36.1]} 33. g4 {[%clk 0:00:57.2]} 33...
Bg6 {[%clk 0:00:31.4]} 34. Nf1 {[%clk 0:00:47.4]} 34... Qc6 {[%clk 0:00:17.7]}
35. Kh2 {[%clk 0:00:43.6]} 35... e5 {[%clk 0:00:17]} 36. Nxh3 {[%clk 0:00:41.6]}
36... Rcd8 {[%clk 0:00:13.1]} 37. Rd1 {[%clk 0:00:39.7]} 37... Be4 {[%clk
0:00:08.4]} 38. Rf2 {[%clk 0:00:36.3]} 38... f3 {[%clk 0:00:06.3]} 39. Qe1
{[%clk 0:00:33.3]} 39... Bg6 {[%clk 0:00:06.2]} 40. Ne3 {[%clk 0:00:32.3]} 40...
Qe4 {[%clk 0:00:05.3]} 41. Rfd2 {[%clk 0:00:30.4]} 41... f2 {[%clk 0:00:04.6]}
42. Qxf2 {[%clk 0:00:29.4]} 42... Rf8 {[%clk 0:00:04.5]} 43. Rxd8 {[%clk
0:00:29]} 1-0

[Event "Late-Titled-Tuesday-Blitz-October-24-2023"]
[Site "Chess.com"]
[Date "2023.10.24"]
[Round "3"]
[White "NotFischer"]
[Black "Good_Knight_Kiss"]
[Result "1-0"]
[WhiteElo "2244"]
[BlackElo "2364"]
[TimeControl "180+1"]
[EndTime "14:29:43 PDT"]
[Termination "NotFischer won on time"]

1. e4 {[%clk 0:03:00.9]} 1... c5 {[%clk 0:02:55.1]} 2. Nf3 {[%clk 0:02:59.8]}
2... d6 {[%clk 0:02:53.4]} 3. d4 {[%clk 0:02:59.6]} 3... cxd4 {[%clk 0:02:53.2]}
4. Nxd4 {[%clk 0:03:00.5]} 4... Nf6 {[%clk 0:02:52.8]} 5. Nc3 {[%clk 0:03:01.2]}
5... a6 {[%clk 0:02:52.4]} 6. Be2 {[%clk 0:02:56.6]} 6... e5 {[%clk 0:02:52.3]}
7. Nb3 {[%clk 0:02:56.6]} 7... Be7 {[%clk 0:02:52.2]} 8. O-O {[%clk 0:02:56.5]}
8... O-O {[%clk 0:02:52]} 9. Kh1 {[%clk 0:02:56.3]} 9... b5 {[%clk 0:02:49]} 10.
a4 {[%clk 0:02:50.2]} 10... Bb7 {[%clk 0:02:40.8]} 11. axb5 {[%clk 0:02:29.8]}
11... axb5 {[%clk 0:02:41.7]} 12. Rxa8 {[%clk 0:02:23.7]} 12... Bxa8 {[%clk
0:02:39.6]} 13. Bxb5 {[%clk 0:02:10]} 13... Nxe4 {[%clk 0:02:36.5]} 14. Nxe4
{[%clk 0:02:10.1]} 14... Bxe4 {[%clk 0:02:37.4]} 15. Qe2 {[%clk 0:02:04.5]}
15... Qb6 {[%clk 0:02:06.5]} 16. c4 {[%clk 0:01:57.4]} 16... Bc6 {[%clk
0:01:18.5]} 17. Be3 {[%clk 0:01:55.6]} 17... Qc7 {[%clk 0:01:13]} 18. Rc1 {[%clk
0:01:39.6]} 18... Nd7 {[%clk 0:01:01.1]} 19. Bxc6 {[%clk 0:01:26.5]} 19... Qxc6
{[%clk 0:01:02]} 20. Na5 {[%clk 0:01:26.7]} 20... Qa4 {[%clk 0:00:47.7]} 21. Qd2
{[%clk 0:01:14.3]} 21... Rb8 {[%clk 0:00:37.4]} 22. b3 {[%clk 0:01:05.6]} 22...
Qb4 {[%clk 0:00:24]} 23. Qxb4 {[%clk 0:01:00]} 23... Rxb4 {[%clk 0:00:24.9]} 24.
Nc6 {[%clk 0:01:00.2]} 24... Rxb3 {[%clk 0:00:21]} 25. Nxe7+ {[%clk 0:00:59.2]}
25... Kf8 {[%clk 0:00:20.8]} 26. Nd5 {[%clk 0:00:59.5]} 26... f5 {[%clk
0:00:17.6]} 27. Bd2 {[%clk 0:00:50.1]} 27... Rb2 {[%clk 0:00:15.2]} 28. Bb4
{[%clk 0:00:48.4]} 28... Rxf2 {[%clk 0:00:13.1]} 29. Bxd6+ {[%clk 0:00:48]}
29... Kf7 {[%clk 0:00:13.6]} 30. Kg1 {[%clk 0:00:48.8]} 30... Rd2 {[%clk
0:00:12.2]} 31. Rf1 {[%clk 0:00:46.7]} 31... g6 {[%clk 0:00:08.9]} 32. Bb4
{[%clk 0:00:41.9]} 32... Rc2 {[%clk 0:00:08.8]} 33. Bc3 {[%clk 0:00:41.1]} 33...
Nf6 {[%clk 0:00:04.4]} 34. Bxe5 {[%clk 0:00:33.5]} 34... Ng4 {[%clk 0:00:04.1]}
35. Bg3 {[%clk 0:00:23.2]} 35... Rxc4 {[%clk 0:00:03.5]} 36. h3 {[%clk 0:00:23]}
36... Nf6 {[%clk 0:00:02.9]} 37. Nxf6 {[%clk 0:00:21.6]} 37... Kxf6 {[%clk
0:00:03.8]} 38. Bh4+ {[%clk 0:00:22.1]} 38... g5 {[%clk 0:00:03.7]} 39. Be1
{[%clk 0:00:22.2]} 39... Rc2 {[%clk 0:00:03.2]} 40. g4 {[%clk 0:00:19.6]} 40...
f4 {[%clk 0:00:03]} 41. Rf2 {[%clk 0:00:20.1]} 41... Rc1 {[%clk 0:00:03]} 42.
Kf1 {[%clk 0:00:20.7]} 42... Rc2 {[%clk 0:00:02.9]} 43. Rxc2 {[%clk 0:00:20.5]}
1-0

[Event "Late-Titled-Tuesday-Blitz-October-24-2023"]
[Site "Chess.com"]
[Date "2023.10.24"]
[Round "3"]
[White "The_Princess_Moon"]
[Black "Bala-Afiada"]
[Result "1/2-1/2"]
[WhiteElo "2353"]
[BlackElo "1843"]
[TimeControl "180+1"]
[EndTime "14:29:44 PDT"]
[Termination "Game drawn by repetition"]

1. e4 {[%clk 0:03:00.9]} 1... c5 {[%clk 0:03:00]} 2. Nf3 {[%clk 0:02:59.5]} 2...
Nc6 {[%clk 0:02:59.7]} 3. Bb5 {[%clk 0:02:56.2]} 3... d6 {[%clk 0:02:59]} 4. c3
{[%clk 0:02:53.7]} 4... Bg4 {[%clk 0:02:56.2]} 5. h3 {[%clk 0:02:48.9]} 5...
Bxf3 {[%clk 0:02:55.6]} 6. Qxf3 {[%clk 0:02:49.8]} 6... e5 {[%clk 0:02:54.5]} 7.
O-O {[%clk 0:02:48]} 7... Nf6 {[%clk 0:02:54.1]} 8. d4 {[%clk 0:02:45.2]} 8...
cxd4 {[%clk 0:02:53.2]} 9. cxd4 {[%clk 0:02:44.9]} 9... a6 {[%clk 0:02:49]} 10.
dxe5 {[%clk 0:02:35.6]} 10... dxe5 {[%clk 0:02:28.7]} 11. Bxc6+ {[%clk
0:02:30.3]} 11... bxc6 {[%clk 0:02:27.8]} 12. Bg5 {[%clk 0:02:22.1]} 12... Be7
{[%clk 0:02:27.5]} 13. Bxf6 {[%clk 0:02:17.6]} 13... Bxf6 {[%clk 0:02:27.5]} 14.
Rd1 {[%clk 0:02:15.4]} 14... Qb6 {[%clk 0:02:25.8]} 15. Nd2 {[%clk 0:02:10.2]}
15... O-O {[%clk 0:02:18.4]} 16. Nc4 {[%clk 0:02:08.2]} 16... Qb5 {[%clk
0:01:58.4]} 17. Nd6 {[%clk 0:01:38.1]} 17... Qxb2 {[%clk 0:01:52.7]} 18. Nf5
{[%clk 0:01:29.4]} 18... Rad8 {[%clk 0:01:39.7]} 19. Nh6+ {[%clk 0:01:24.4]}
19... Kh8 {[%clk 0:01:36.6]} 20. Ng4 {[%clk 0:00:20.9]} 20... Rxd1+ {[%clk
0:01:24.9]} 21. Rxd1 {[%clk 0:00:21.8]} 21... Be7 {[%clk 0:01:20.1]} 22. Rd7
{[%clk 0:00:21.3]} 22... Qb4 {[%clk 0:01:04]} 23. Ne3 {[%clk 0:00:17.7]} 23...
Rd8 {[%clk 0:00:57.4]} 24. Rxd8+ {[%clk 0:00:16.2]} 24... Bxd8 {[%clk
0:00:58.3]} 25. Qxf7 {[%clk 0:00:15.6]} 25... Be7 {[%clk 0:00:51.7]} 26. Qe8+
{[%clk 0:00:15]} 26... Bf8 {[%clk 0:00:51.8]} 27. Nf5 {[%clk 0:00:14.9]} 27...
h6 {[%clk 0:00:34.8]} 28. Qxe5 {[%clk 0:00:12.9]} 28... Qb1+ {[%clk 0:00:21.7]}
29. Kh2 {[%clk 0:00:12]} 29... Qb4 {[%clk 0:00:22.5]} 30. Nxh6 {[%clk 0:00:10]}
30... Kh7 {[%clk 0:00:19.3]} 31. Nf5 {[%clk 0:00:10.3]} 31... Qc5 {[%clk
0:00:15.6]} 32. Qg3 {[%clk 0:00:09.3]} 32... g6 {[%clk 0:00:14.6]} 33. Qh4+
{[%clk 0:00:09.5]} 33... Kg8 {[%clk 0:00:14.6]} 34. Qg5 {[%clk 0:00:09.6]} 34...
Bd6+ {[%clk 0:00:13.9]} 35. g3 {[%clk 0:00:09.9]} 35... Qxf2+ {[%clk 0:00:12.6]}
36. Kh1 {[%clk 0:00:08.8]} 36... Qf1+ {[%clk 0:00:11.6]} 37. Kh2 {[%clk
0:00:09.2]} 37... Qf2+ {[%clk 0:00:11.8]} 38. Kh1 {[%clk 0:00:09.6]} 38... Qf1+
{[%clk 0:00:05.9]} 39. Kh2 {[%clk 0:00:09.8]} 39... Qf2+ {[%clk 0:00:06.8]}
1/2-1/2

[Event "Late-Titled-Tuesday-Blitz-October-24-2023"]
[Site "Chess.com"]
[Date "2023.10.24"]
[Round "3"]
[White "Vamostodorecto"]
[Black "Sanyura"]
[Result "1-0"]
[WhiteElo "2438"]
[BlackElo "2607"]
[TimeControl "180+1"]
[EndTime "14:29:46 PDT"]
[Termination "Vamostodorecto won by resignation"]

1. e4 {[%clk 0:03:00.9]} 1... c5 {[%clk 0:02:29]} 2. d4 {[%clk 0:02:56.6]} 2...
e6 {[%clk 0:02:29.9]} 3. dxc5 {[%clk 0:02:52.3]} 3... Bxc5 {[%clk 0:02:29.2]} 4.
Nc3 {[%clk 0:02:46.1]} 4... Nc6 {[%clk 0:02:28.4]} 5. Nf3 {[%clk 0:02:44.9]}
5... Nf6 {[%clk 0:02:27.8]} 6. Bd3 {[%clk 0:02:41]} 6... d5 {[%clk 0:02:22.4]}
7. O-O {[%clk 0:02:37.6]} 7... O-O {[%clk 0:02:14.3]} 8. Bg5 {[%clk 0:02:35.6]}
8... Be7 {[%clk 0:01:51.5]} 9. Qe2 {[%clk 0:02:31.9]} 9... d4 {[%clk 0:01:17.9]}
10. e5 {[%clk 0:02:11.8]} 10... dxc3 {[%clk 0:01:16.7]} 11. exf6 {[%clk
0:02:10.6]} 11... Bxf6 {[%clk 0:01:17.4]} 12. Qe4 {[%clk 0:01:47.5]} 12... g6
{[%clk 0:01:10]} 13. Qh4 {[%clk 0:01:47.2]} 13... Bxg5 {[%clk 0:01:02]} 14. Nxg5
{[%clk 0:01:48.1]} 14... h5 {[%clk 0:00:58.4]} 15. Rad1 {[%clk 0:01:42.2]} 15...
Qf6 {[%clk 0:00:52.3]} 16. bxc3 {[%clk 0:01:12.5]} 16... Bd7 {[%clk 0:00:35.7]}
17. Bxg6 {[%clk 0:01:07.6]} 17... Qxg6 {[%clk 0:00:06.9]} 18. Rxd7 {[%clk
0:01:05.4]} 18... Ne5 {[%clk 0:00:07.5]} 19. Rxb7 {[%clk 0:00:57.6]} 19... f6
{[%clk 0:00:07.4]} 20. Qe4 {[%clk 0:00:27.1]} 20... Qxe4 {[%clk 0:00:03.2]} 21.
Nxe4 {[%clk 0:00:28]} 21... Rac8 {[%clk 0:00:03.2]} 22. f4 {[%clk 0:00:22.2]}
22... Ng4 {[%clk 0:00:02.3]} 23. h3 {[%clk 0:00:19.4]} 23... Ne3 {[%clk
0:00:02.7]} 24. Rf3 {[%clk 0:00:18.6]} 24... Nf5 {[%clk 0:00:02.9]} 25. Rd3
{[%clk 0:00:12.8]} 25... Rc4 {[%clk 0:00:02.8]} 26. Ng3 {[%clk 0:00:11]} 26...
Rxf4 {[%clk 0:00:03]} 27. Nxh5 {[%clk 0:00:09.9]} 27... Re4 {[%clk 0:00:02.4]}
28. Rdd7 {[%clk 0:00:07]} 28... Rh4 {[%clk 0:00:02.4]} 29. Ng7 {[%clk
0:00:05.8]} 29... Rh6 {[%clk 0:00:01.2]} 30. Nxf5 {[%clk 0:00:05.7]} 30... exf5
{[%clk 0:00:01.7]} 31. Rg7+ {[%clk 0:00:06.2]} 31... Kh8 {[%clk 0:00:01.7]} 32.
Rxa7 {[%clk 0:00:05.7]} 32... f4 {[%clk 0:00:02.1]} 33. Kf2 {[%clk 0:00:05.2]}
33... f3 {[%clk 0:00:02.3]} 34. Kxf3 {[%clk 0:00:05.5]} 34... f5 {[%clk
0:00:01]} 35. Kf4 {[%clk 0:00:05.3]} 35... Rc6 {[%clk 0:00:01.4]} 36. Rh7+
{[%clk 0:00:04.9]} 1-0

[Event "Late-Titled-Tuesday-Blitz-October-24-2023"]
[Site "Chess.com"]
[Date "2023.10.24"]
[Round "3"]
[White "chesspreceptor"]
[Black "Drags95"]
[Result "1-0"]
[WhiteElo "2621"]
[BlackElo "2854"]
[TimeControl "180+1"]
[EndTime "14:29:47 PDT"]
[Termination "chesspreceptor won on time"]

1. d4 {[%clk 0:03:00.9]} 1... Nf6 {[%clk 0:03:00]} 2. Bf4 {[%clk 0:02:57.8]}
2... d5 {[%clk 0:02:59.7]} 3. Nc3 {[%clk 0:02:57.4]} 3... c5 {[%clk 0:02:56.9]}
4. e3 {[%clk 0:02:50]} 4... cxd4 {[%clk 0:02:56.8]} 5. exd4 {[%clk 0:02:49.5]}
5... a6 {[%clk 0:02:56.7]} 6. Nf3 {[%clk 0:02:49.9]} 6... Nc6 {[%clk 0:02:56.6]}
7. Ne5 {[%clk 0:02:50.2]} 7... Bd7 {[%clk 0:02:53.9]} 8. Qd2 {[%clk 0:02:46.3]}
8... e6 {[%clk 0:02:52.9]} 9. a3 {[%clk 0:02:41.3]} 9... Rc8 {[%clk 0:02:35.3]}
10. Be2 {[%clk 0:02:35.9]} 10... Nxe5 {[%clk 0:02:31.7]} 11. dxe5 {[%clk
0:02:34.4]} 11... Ng8 {[%clk 0:02:30]} 12. O-O {[%clk 0:02:33.3]} 12... Ne7
{[%clk 0:02:29.7]} 13. Bd3 {[%clk 0:01:58.9]} 13... Ng6 {[%clk 0:02:28.8]} 14.
Bg3 {[%clk 0:01:59.4]} 14... Bc5 {[%clk 0:02:19.8]} 15. Ne2 {[%clk 0:01:51.4]}
15... O-O {[%clk 0:02:15.8]} 16. Rad1 {[%clk 0:01:46.4]} 16... Bb5 {[%clk
0:01:44.4]} 17. Bxb5 {[%clk 0:01:33.8]} 17... axb5 {[%clk 0:01:45.3]} 18. c3
{[%clk 0:01:34.2]} 18... Bb6 {[%clk 0:01:44.6]} 19. Kh1 {[%clk 0:01:31.5]} 19...
Rc4 {[%clk 0:01:43.7]} 20. f4 {[%clk 0:01:27.1]} 20... Qc7 {[%clk 0:01:25.4]}
21. f5 {[%clk 0:01:20.4]} 21... Nxe5 {[%clk 0:00:54.1]} 22. Nd4 {[%clk
0:01:05.5]} 22... Qb8 {[%clk 0:00:36.3]} 23. fxe6 {[%clk 0:00:59]} 23... f6
{[%clk 0:00:36.9]} 24. Nxb5 {[%clk 0:00:47.4]} 24... Rc5 {[%clk 0:00:32.6]} 25.
Nd4 {[%clk 0:00:46.3]} 25... Qe8 {[%clk 0:00:31.6]} 26. b4 {[%clk 0:00:29.6]}
26... Rc4 {[%clk 0:00:30.8]} 27. Nf5 {[%clk 0:00:24.6]} 27... Qxe6 {[%clk
0:00:27.9]} 28. Qxd5 {[%clk 0:00:21.8]} 28... Qxd5 {[%clk 0:00:26.3]} 29. Rxd5
{[%clk 0:00:20.9]} 29... Ng4 {[%clk 0:00:09.6]} 30. Rd7 {[%clk 0:00:17.4]} 30...
g6 {[%clk 0:00:10.1]} 31. Ne7+ {[%clk 0:00:15.7]} 31... Kh8 {[%clk 0:00:10.5]}
32. h3 {[%clk 0:00:14]} 32... Ne3 {[%clk 0:00:10.1]} 33. Rc1 {[%clk 0:00:08.6]}
33... Re8 {[%clk 0:00:07]} 34. Bf2 {[%clk 0:00:08.4]} 34... Nd5 {[%clk
0:00:04.6]} 35. Nxd5 {[%clk 0:00:06]} 35... Bxf2 {[%clk 0:00:04.4]} 36. Nxf6
{[%clk 0:00:06.7]} 1-0